bitfinex-derivatives/quotes_ETHF0:USTF0_20250507
["timestamp","ask_amount","ask_price","bid_price","bid_amount"]
[1746577609922,1.6676,1837.3,1837.2,2.82766]
[1746577610123,1.6676,1837.3,1837.1,41.88868]
[1746577610318,4.29646,1837.2,1837.1,40.8]
[1746577610528,1.0888,1837.0,1836.6,2.72253]
[1746577610829,4.29661,1837.0,1836.7,1.6588]
[1746577611122,2.68314,1836.9,1836.8,40.8]
[1746577611322,1.0889,1836.8,1836.6,1.08901]
[1746577611631,4.8021,1836.7,1836.6,1.08901]
[1746577611821,5.89106,1836.7,1836.6,1.08901]
[1746577612017,5.89106,1836.7,1836.5,1.6588]
[1746577612018,1.08902,1836.6,1836.5,1.6588]
[1746577612221,1.08911,1836.5,1836.3,1.08917]
[1746577612427,1.5943,1836.4,1836.0,1.6588]
[1746577612628,3.2078,1836.3,1836.2,1.08923]
[1746577612824,8.4673,1836.4,1836.2,1.08924]
[1746577613127,9.55644,1836.4,1836.3,42.4588]
[1746577613328,12.76424,1836.4,1836.3,42.4588]
[1746577613526,11.6751,1836.4,1836.3,43.548]
[1746577613724,12.76424,1836.4,1836.3,40.8]
[1746577613930,1.08922,1836.3,1836.1,1.08929]
[1746577614125,1.6301,1836.2,1836.1,1.08929]
[1746577614318,10.0808,1836.4,1836.3,1.0892]
[1746577614627,10.0808,1836.4,1836.1,41.88927]
[1746577614826,11.16997,1836.4,1836.1,41.88926]
[1746577615024,10.0808,1836.4,1836.2,1.08923]
[1746577615228,10.0808,1836.4,1836.2,1.08926]
[1746577615430,1.0892,1836.3,1836.1,40.8]
[1746577615631,1.0892,1836.3,1836.1,41.8893]
[1746577615832,1.08926,1836.2,1836.1,41.8893]
[1746577616024,1.08926,1836.2,1836.1,40.8]
[1746577616225,2.71932,1836.3,1836.1,41.88931]
[1746577616425,1.08926,1836.2,1836.1,41.88931]
[1746577616624,2.71933,1836.3,1836.1,41.88927]
[1746577616827,1.08926,1836.2,1836.1,40.8]
[1746577617027,1.08921,1836.3,1836.1,41.88931]
[1746577617425,1.08926,1836.2,1836.1,41.88931]
[1746577617733,10.0808,1836.4,1836.1,40.8]
[1746577617928,10.0808,1836.4,1836.3,1.0892]
[1746577618436,3.2078,1836.4,1836.3,1.0892]
[1746577618835,4.29694,1836.4,1836.2,1.0892]
[1746577619036,3.2078,1836.4,1836.3,1.0892]
[1746577619337,1.08921,1836.3,1836.2,1.08924]
[1746577619535,5.96817,1836.4,1836.3,1.0892]
[1746577619732,5.96817,1836.4,1836.2,1.08921]
[1746577619929,1.08926,1836.2,1836.1,40.8]
[1746577620625,4.29706,1836.2,1836.1,40.8]
[1746577622039,1.08926,1836.2,1836.1,40.8]
[1746577622434,2.78496,1836.2,1836.1,40.8]
[1746577622641,2.78496,1836.2,1835.6,3.2078]
[1746577622642,1.08948,1835.9,1835.6,3.2078]
[1746577622842,4.29721,1836.0,1835.6,3.2078]
[1746577623050,1.08939,1836.0,1835.9,1.08943]
[1746577623343,1.6957,1836.2,1835.8,2.72373]
[1746577623546,1.08926,1836.2,1836.1,1.08931]
[1746577623748,3.2078,1836.3,1836.0,3.2078]
[1746577623939,3.2078,1836.3,1836.2,1.08926]
[1746577624136,4.29698,1836.4,1836.3,1.0892]
[1746577624554,4.29695,1836.4,1836.0,5.93122]
[1746577624848,1.08902,1836.6,1836.3,3.2078]
[1746577625148,2.7224,1836.7,1836.2,1.08921]
[1746577625335,1.7314,1836.6,1836.4,1.08912]
[1746577625635,2.82044,1836.6,1836.5,1.6788]
[1746577625838,6.02824,1836.6,1836.5,1.6788]
[1746577626144,1.08919,1836.4,1836.0,11.09153]
[1746577626346,1.08919,1836.4,1836.3,1.0892]
[1746577626545,1.08914,1836.4,1836.3,1.08916]
[1746577626746,3.2078,1836.8,1836.3,8.2078]
[1746577626942,1.08908,1836.5,1836.4,1.6447]
[1746577627344,2.72278,1836.5,1836.0,1.4421]
[1746577627545,1.08926,1836.2,1836.1,1.6447]
[1746577627846,4.9367,1836.4,1836.1,1.6447]
[1746577628047,1.08926,1836.2,1836.1,1.6447]
[1746577628444,4.29706,1836.2,1836.1,1.6447]
[1746577629243,4.29706,1836.2,1835.7,47.454]
[1746577629244,5.93098,1836.2,1835.7,47.454]
[1746577629448,1.08949,1835.8,1835.7,47.454]
[1746577630242,1.08949,1835.8,1835.7,40.8]
[1746577630551,1.08973,1835.4,1835.3,6.655]
[1746577630752,4.29753,1835.4,1835.3,0.69313209]
[1746577631150,1.08997,1835.0,1834.9,42.5022]
[1746577631346,1.08997,1835.0,1834.9,43.19578908]
[1746577631543,1.08997,1835.0,1834.9,42.5022]
[1746577631950,4.29777,1835.0,1834.9,42.5022]
[1746577632151,1.08997,1835.0,1834.9,42.5022]
[1746577632652,4.29777,1835.0,1834.9,42.5022]
[1746577632848,4.29777,1835.0,1834.9,43.59223]
[1746577632849,3.2078,1835.0,1834.9,43.59223]
[1746577633056,1.08961,1835.6,1835.4,1.08969]
[1746577633257,1.08961,1835.6,1835.5,1.667]
[1746577634154,1.08961,1835.6,1835.2,6.655]
[1746577634454,1.08973,1835.4,1835.3,1.667]
[1746577634851,4.29753,1835.4,1835.3,1.667]
[1746577635350,2.89482787,1835.4,1835.2,1.08983]
[1746577635655,1.08989,1835.2,1835.0,9.42544]
[1746577635853,1.08991,1835.1,1835.0,1.6795]
[1746577636053,1.08997,1835.0,1834.9,40.8]
[1746577636351,4.29777,1835.0,1834.9,40.8]
[1746577636556,2.72509,1834.9,1834.3,10.38881338]
[1746577636856,1.09028,1834.5,1834.4,1.6795]
[1746577637051,1.09028,1834.5,1834.4,42.4795]
[1746577637249,2.82928,1834.5,1834.4,40.8]
[1746577637456,7.64417,1834.7,1834.4,44.0078]
[1746577637655,7.64419,1834.7,1834.5,1.6795]
[1746577637855,4.24851,1834.8,1834.5,4.8873]
[1746577638153,7.64605,1834.9,1834.7,1.09015]
[1746577638349,3.2078,1835.0,1834.9,1.09003]
[1746577638659,4.29766,1835.2,1835.0,1.08995]
[1746577638855,4.29766,1835.2,1835.1,1.66]
[1746577639051,3.2078,1835.2,1835.1,1.66]
[1746577639245,4.8128,1835.4,1835.1,1.66]
[1746577639447,5.90254,1835.4,1835.1,2.74987]
[1746577639651,3.2078,1835.4,1835.2,2.74983]
[1746577639845,3.2078,1835.4,1835.3,1.08979]
[1746577640252,1.08959,1835.7,1835.5,1.08963]
[1746577640451,4.8128,1835.8,1835.6,1.66]
[1746577640752,1.08955,1835.7,1835.6,1.66]
[1746577642255,3.2078,1836.3,1835.6,9.8678]
[1746577642454,1.4666,1836.4,1835.7,9.38178]
[1746577642659,1.08928,1836.2,1835.9,1.08943]
[1746577642853,6.423,1836.4,1835.8,1.6637]
[1746577642854,1.08939,1836.0,1835.8,1.6637]
[1746577643053,2.83796,1836.1,1835.8,2.75317]
[1746577643360,1.08937,1836.0,1835.9,42.4637]
[1746577643563,1.08937,1836.0,1835.9,40.8]
[1746577643564,2.83797,1836.0,1835.9,40.8]
[1746577644061,1.08933,1836.1,1835.9,40.8]
[1746577644253,3.2078,1836.1,1835.9,40.8]
[1746577644562,4.29717,1836.0,1835.9,40.8]
[1746577645562,1.0895,1835.8,1835.5,1.6509]
[1746577645759,1.7334,1835.7,1835.5,1.6509]
[1746577645957,6.03075,1835.7,1835.5,2.74055]
[1746577646262,4.9412,1835.7,1835.6,40.8]
[1746577646758,1.7334,1835.7,1835.6,40.8]
[1746577647463,1.7334,1835.7,1835.6,41.88961]
[1746577648565,4.9412,1835.7,1835.6,41.88961]
[1746577648957,3.2078,1835.7,1835.6,41.88961]
[1746577649366,3.2078,1835.7,1835.6,40.8]
[1746577649662,4.29735,1835.7,1835.6,40.8]
[1746577649970,3.2078,1835.7,1835.6,40.8]
[1746577650669,4.29735,1835.7,1835.6,40.8]
[1746577650967,4.28153545,1835.7,1835.6,40.8]
[1746577651358,1.08955,1835.7,1835.6,40.8]
[1746577651567,1.0895,1835.8,1835.6,41.88958]
[1746577651772,1.6365,1835.9,1835.8,1.08949]
[1746577651971,1.08921,1836.3,1836.1,1.08926]
[1746577652163,1.7592,1836.4,1836.2,3.2078]
[1746577652362,1.7592,1836.4,1836.3,1.7614]
[1746577652363,2.84836,1836.4,1836.3,1.7614]
[1746577652566,20.36437,1836.7,1836.3,1.7614]
[1746577652567,1.3671,1836.7,1836.3,42.5614]
[1746577652765,1.7592,1836.8,1836.6,1.08898]
[1746577652973,7.48786,1836.9,1836.6,1.08896]
[1746577653170,10.69566,1836.9,1836.6,1.08896]
[1746577653466,6.399,1836.9,1836.7,1.655]
[1746577653663,6.399,1836.9,1836.7,2.74395]
[1746577653864,4.29655,1837.1,1836.8,1.0889]
[1746577654171,3.2078,1836.9,1836.6,1.08899]
[1746577654375,2.7844,1837.0,1836.6,1.655]
[1746577654561,1.08877,1837.1,1836.8,1.08889]
[1746577654764,1.08881,1837.0,1836.7,6.388]
[1746577654966,12.742,1837.2,1836.8,1.08888]
[1746577655166,1.08882,1837.0,1836.8,2.74388]
[1746577655467,1.08882,1837.0,1836.9,1.655]
[1746577655667,4.29662,1837.0,1836.9,1.655]
[1746577655867,3.2078,1837.0,1836.7,1.08896]
[1746577656066,1.08887,1836.9,1836.7,1.08896]
[1746577656272,1.08887,1836.9,1836.8,1.7203]
[1746577656573,1.08877,1837.1,1836.9,1.08883]
[1746577656769,1.08888,1836.9,1836.7,1.08895]
[1746577656970,2.70733,1837.0,1836.8,1.0889]
[1746577657164,2.70733,1837.0,1836.9,1.7203]
[1746577657365,3.2078,1837.2,1837.1,1.08872]
[1746577657560,3.2078,1837.2,1836.9,1.7203]
[1746577657769,1.08877,1837.1,1836.9,2.8091]
[1746577657967,1.08877,1837.1,1836.9,1.7203]
[1746577658268,1.08877,1837.1,1837.0,1.08876]
[1746577658269,1.08872,1837.1,1837.0,1.08876]
[1746577658565,1.08878,1837.0,1836.9,2.8091]
[1746577658771,3.2078,1837.2,1836.9,2.8091]
[1746577658972,1.08878,1837.0,1836.9,2.8091]
[1746577659175,1.08878,1837.0,1836.9,1.7203]
[1746577659366,1.08878,1837.0,1836.9,2.80914]
[1746577659568,1.08878,1837.0,1836.9,1.7203]
[1746577659882,1.08878,1837.0,1836.9,2.80914]
[1746577660069,2.69006,1837.1,1836.9,2.80914]
[1746577660270,3.2078,1837.2,1836.9,1.7203]
[1746577660472,3.2078,1837.2,1837.0,1.08878]
[1746577660473,1.08872,1837.1,1837.0,1.08878]
[1746577660674,3.2078,1837.2,1837.1,1.08872]
[1746577660874,4.29652,1837.2,1837.0,1.08874]
[1746577661075,4.29652,1837.2,1837.1,2.68372]
[1746577661379,3.2078,1837.2,1837.1,2.68372]
[1746577661580,1.08856,1837.4,1837.3,1.0886]
[1746577662172,1.08864,1837.3,1837.2,1.08865]
[1746577662382,1.08864,1837.3,1837.2,2.72345]
[1746577662982,3.0849,1837.6,1837.3,1.08856]
[1746577663181,1.08854,1837.4,1837.3,1.08856]
[1746577663381,1.08851,1837.5,1837.4,1.0885]
[1746577663677,4.8338,1837.5,1837.2,41.88861]
[1746577663883,1.0886,1837.3,1837.2,40.8]
[1746577664579,2.7146,1837.3,1837.2,40.8]
[1746577665081,1.626,1837.3,1837.2,41.88866]
[1746577667671,1.626,1837.3,1837.2,40.8]
[1746577667877,2.7146,1837.3,1837.2,40.8]
[1746577668278,2.7146,1837.3,1836.9,1.08881]
[1746577668279,1.08876,1837.1,1836.9,1.08881]
[1746577668475,1.4251,1837.2,1837.1,1.08872]
[1746577668683,3.0756,1837.2,1837.1,1.08872]
[1746577668881,3.0756,1837.2,1837.1,40.8]
[1746577669083,4.16426,1837.2,1837.1,40.8]
[1746577669282,1.08877,1837.1,1836.8,1.08889]
[1746577669583,3.0756,1837.2,1836.3,3.2078]
[1746577669584,3.2078,1836.9,1836.3,3.2078]
[1746577669883,4.29677,1836.7,1836.5,1.08907]
[1746577670089,1.6505,1836.6,1836.4,1.08909]
[1746577670486,1.6505,1836.6,1836.5,1.08908]
[1746577670688,1.6505,1836.6,1836.4,1.0891]
[1746577671176,1.08914,1836.4,1836.3,40.8]
[1746577671385,3.2078,1836.5,1836.4,1.08914]
[1746577672691,1.6109,1836.8,1836.4,1.08914]
[1746577672880,1.6109,1836.8,1836.7,1.08896]
[1746577673085,1.0889,1836.9,1836.7,1.08896]
[1746577673288,1.08909,1836.5,1836.4,1.0891]
[1746577673582,1.08914,1836.4,1836.3,47.185]
[1746577673882,2.723,1836.3,1835.8,4.29728]
[1746577674079,1.08934,1836.1,1835.9,1.08938]
[1746577674283,9.2755,1836.3,1836.2,1.08926]
[1746577674284,3.1085,1836.3,1836.2,1.08926]
[1746577674479,1.08927,1836.2,1836.0,41.88933]
[1746577674787,1.08931,1836.1,1836.0,40.8]
[1746577674984,1.08931,1836.1,1836.0,41.88937]
[1746577675288,1.08931,1836.1,1836.0,40.8]
[1746577675786,1.08927,1836.2,1836.0,41.88936]
[1746577676482,1.7509,1836.1,1836.0,40.8]
[1746577676992,1.7509,1836.1,1836.0,41.88937]
[1746577677587,10.9038,1836.5,1836.2,1.08924]
[1746577677789,2.84314,1836.4,1836.1,1.7642]
[1746577677989,2.84314,1836.4,1836.3,1.0892]
[1746577678284,2.84314,1836.4,1836.2,1.08921]
[1746577678480,1.0892,1836.3,1836.2,1.08921]
[1746577678685,1.754,1836.3,1836.2,1.08921]
[1746577679585,1.08917,1836.4,1836.2,1.08921]
[1746577679885,1.754,1836.3,1836.2,1.08921]
[1746577680384,10.9038,1836.5,1836.1,1.7642]
[1746577680587,3.2078,1836.5,1836.4,1.08914]
[1746577681180,4.29691,1836.5,1836.4,1.08914]
[1746577681383,3.2078,1836.5,1836.4,1.08914]
[1746577682790,4.29688,1836.5,1836.4,1.08914]
[1746577682992,1.08915,1836.4,1836.3,1.08915]
[1746577683185,1.6932,1836.4,1836.3,1.08915]
[1746577683391,1.6932,1836.4,1836.3,2.69805]
[1746577683881,2.78234,1836.4,1836.3,2.69805]
[1746577684083,1.0892,1836.3,1836.2,5.14821]
[1746577684279,2.6988,1836.3,1836.2,4.059]
[1746577684490,5.9066,1836.3,1836.2,4.059]
[1746577684781,1.6096,1836.3,1836.2,5.14826]
[1746577685491,1.08926,1836.2,1836.1,6.82868]
[1746577685687,1.08926,1836.2,1836.1,4.059]
[1746577685887,1.08946,1835.9,1835.7,4.059]
[1746577686092,1.08943,1835.9,1835.8,1.08944]
[1746577686284,4.29717,1836.0,1835.8,1.08945]
[1746577686487,1.6096,1835.9,1835.8,1.08945]
[1746577686882,3.2078,1836.0,1835.9,1.08943]
[1746577687593,6.166,1836.3,1836.2,1.08926]
[1746577687794,4.297,1836.3,1836.2,1.08926]
[1746577688098,3.2078,1836.3,1836.2,1.08926]
[1746577688592,4.7131,1836.5,1836.4,1.08914]
[1746577688792,5.80218,1836.5,1836.4,1.08914]
[1746577689094,7.55143,1836.5,1836.3,5.14815]
[1746577689295,4.957,1836.5,1836.4,1.08914]
[1746577689494,4.957,1836.5,1836.4,2.71394]
[1746577690592,4.7131,1836.9,1836.4,6.77294]
[1746577690794,1.7065,1836.8,1836.7,1.08895]
[1746577691396,3.2078,1836.9,1836.8,1.0889]
[1746577691801,1.0889,1836.8,1836.7,5.14791]
[1746577692097,2.7954,1836.8,1836.7,4.059]
[1746577692397,2.7954,1836.8,1836.7,44.859]
[1746577692896,7.7954,1836.8,1836.7,44.859]
[1746577693095,1.08911,1836.5,1836.1,9.3748]
[1746577693296,5.98567,1836.4,1836.1,1.7386]
[1746577693497,5.98567,1836.4,1836.2,1.08924]
[1746577693692,5.98567,1836.4,1836.3,40.8]
[1746577694098,1.08925,1836.3,1836.0,1.08932]
[1746577694296,2.77796,1836.2,1836.0,1.7386]
[1746577694495,1.0894,1836.0,1835.8,1.08948]
[1746577694794,1.6887,1835.9,1835.6,1.7386]
[1746577694996,1.08954,1835.8,1835.7,40.8]
[1746577695495,4.29734,1835.8,1835.7,40.8]
[1746577695889,1.08955,1835.7,1835.6,7.03708551]
[1746577696093,7.787,1835.7,1835.5,10.38881338]
[1746577696293,12.04251,1835.6,1835.5,7.98941338]
[1746577696494,13.66651,1835.6,1835.5,7.98941338]
[1746577696695,18.66651,1835.6,1835.5,7.98941338]
[1746577696999,13.66651,1835.6,1835.5,7.98941338]
[1746577697194,18.66651,1835.6,1835.5,3.74491338]
[1746577697394,1.08967,1835.5,1835.4,13.73898038]
[1746577697592,2.71367,1835.5,1835.4,13.73898038]
[1746577697794,7.71367,1835.5,1835.4,13.73898038]
[1746577698200,2.71367,1835.5,1835.4,13.73898038]
[1746577698396,7.71367,1835.5,1835.4,13.73898038]
[1746577698596,20.04367,1835.5,1835.4,13.73898038]
[1746577698893,20.04367,1835.5,1835.4,9.79957666]
[1746577699100,20.04367,1835.5,1835.4,8.23717666]
[1746577699300,20.04367,1835.5,1835.4,3.83994294]
[1746577699595,20.04367,1835.5,1835.4,2.30942294]
[1746577699799,1.09001,1835.0,1834.7,1.09014]
[1746577700098,1.09003,1834.9,1834.8,1.6809]
[1746577700288,1.6035,1834.9,1834.8,1.6809]
[1746577700492,2.69353,1834.9,1834.8,1.6809]
[1746577700691,1.09009,1834.8,1834.5,1.09024]
[1746577700894,1.09022,1834.6,1834.4,1.6809]
[1746577701097,4.29801,1834.6,1834.4,1.6809]
[1746577701303,4.29801,1834.6,1834.4,6.6809]
[1746577701499,1.09026,1834.5,1834.4,6.6809]
[1746577701693,1.09026,1834.5,1834.4,1.6809]
[1746577701998,1.09032,1834.4,1834.1,5.85986]
[1746577702194,1.6407,1834.4,1834.2,2.74233]
[1746577702395,10.46004,1834.6,1834.3,1.09035]
[1746577702593,1.09026,1834.5,1834.4,1.6519]
[1746577702793,2.73096,1834.5,1834.4,1.6519]
[1746577703094,2.73096,1834.5,1834.4,42.4519]
[1746577703398,2.73096,1834.5,1834.4,40.8]
[1746577703794,6.162,1834.6,1834.4,5.0]
[1746577704006,3.2078,1834.8,1834.5,1.6519]
[1746577704007,1.09016,1834.7,1834.5,1.6519]
[1746577704295,1.09016,1834.7,1834.6,40.8]
[1746577704502,2.73086,1834.7,1834.6,40.8]
[1746577705497,1.09016,1834.7,1834.6,40.8]
[1746577705695,3.2078,1834.8,1834.6,40.8]
[1746577705890,4.29789,1834.8,1834.7,1.6315]
[1746577706095,6.03189,1834.8,1834.7,1.6315]
[1746577706298,3.2078,1834.8,1834.7,1.6315]
[1746577706497,3.2078,1834.8,1834.7,2.72165]
[1746577707090,3.2078,1834.8,1834.7,1.09015]
[1746577707296,3.2078,1834.8,1834.7,2.72165]
[1746577707795,1.734,1835.0,1834.9,1.09003]
[1746577708104,1.08983,1835.3,1835.1,1.08991]
[1746577708301,3.2078,1835.5,1835.2,1.7545]
[1746577708498,1.08953,1835.8,1835.6,1.08961]
[1746577708701,3.61737109,1836.1,1835.9,1.08938]
[1746577708898,3.61737109,1836.1,1836.0,1.7545]
[1746577709198,3.61737109,1836.1,1836.0,2.84387]
[1746577709405,3.61737109,1836.1,1836.0,9.36167]
[1746577709595,5.31441525,1836.2,1836.1,1.08931]
[1746577709802,1e-08,1836.2,1836.1,10.46811]
[1746577710108,1e-08,1836.2,1836.1,15.46811]
[1746577711405,1e-08,1836.2,1836.1,10.46811]
[1746577711800,1.7363,1836.5,1836.1,9.3788]
[1746577712110,1.08918,1836.4,1836.2,2.77296]
[1746577712410,1.0892,1836.3,1836.2,1.6837]
[1746577712604,3.2078,1836.4,1836.0,1.5178]
[1746577712909,6.03339,1836.2,1835.9,1.08942]
[1746577713104,1.7363,1836.2,1836.0,42.4837]
[1746577713310,1.7363,1836.2,1836.0,43.57304]
[1746577713607,2.82557,1836.2,1836.0,43.57304]
[1746577713806,1.08931,1836.1,1836.0,42.4837]
[1746577714006,1.7363,1836.2,1836.0,42.4837]
[1746577714211,6.03336,1836.2,1836.0,43.57305]
[1746577714709,3.2078,1836.2,1836.1,1.08931]
[1746577714912,1.637,1836.5,1836.0,42.4837]
[1746577715113,2.72608,1836.5,1836.3,1.08915]
[1746577715308,4.29685,1836.6,1836.4,2.84604]
[1746577715613,3.2078,1836.6,1836.5,1.08908]
[1746577715808,3.2078,1836.6,1836.5,2.84598]
[1746577716309,3.2078,1836.6,1836.5,1.7569]
[1746577716508,3.2078,1836.6,1836.5,2.84598]
[1746577716903,4.8448,1836.8,1836.5,1.7569]
[1746577717113,3.2078,1837.0,1836.9,1.08884]
[1746577717908,4.29648,1837.2,1837.0,1.08877]
[1746577718108,4.29648,1837.2,1837.1,1.7397]
[1746577718406,3.2078,1837.2,1837.1,1.7397]
[1746577718612,3.2078,1837.2,1837.1,2.82842]
[1746577718810,1.7243,1837.4,1837.2,1.08866]
[1746577719012,3.2078,1837.3,1837.2,1.7397]
[1746577719212,2.81285,1837.4,1837.2,2.82836]
[1746577719712,4.2964,1837.3,1837.2,1.7397]
[1746577719913,4.9321,1837.3,1837.2,1.08866]
[1746577720109,4.9321,1837.3,1837.0,1.6413]
[1746577720310,3.2078,1837.1,1837.0,2.73006]
[1746577720511,3.2078,1837.1,1836.9,1.0888]
[1746577720712,1.7627,1837.0,1836.9,1.0888]
[1746577721014,3.2078,1837.3,1837.1,1.0887]
[1746577721210,3.2078,1837.3,1837.2,40.8]
[1746577721413,4.2964,1837.3,1837.2,40.8]
[1746577721615,9.00129,1837.4,1837.2,40.8]
[1746577721815,1.7627,1837.3,1837.2,41.88866]
[1746577722026,4.9705,1837.3,1837.2,41.88866]
[1746577722223,4.9705,1837.3,1837.2,40.8]
[1746577722526,6.0591,1837.3,1837.2,40.8]
[1746577722827,3.2078,1837.5,1837.2,40.8]
[1746577723119,3.2078,1837.5,1837.3,2.82636]
[1746577723326,3.2078,1837.5,1837.4,1.08854]
[1746577723526,3.2078,1837.5,1837.3,2.82637]
[1746577723723,4.29629,1837.5,1837.3,2.82637]
[1746577723925,4.29629,1837.5,1837.3,1.7378]
[1746577724126,1.08854,1837.4,1837.2,41.88862]
[1746577724326,3.2078,1837.3,1837.2,41.88866]
[1746577725127,4.2964,1837.3,1837.2,40.8]
[1746577725428,3.2078,1837.3,1837.2,40.8]
[1746577725625,1.08859,1837.4,1837.2,40.8]
[1746577725825,4.2964,1837.3,1837.2,42.5378]
[1746577726225,3.2078,1837.3,1837.2,43.62646]
[1746577726830,4.2964,1837.3,1837.2,42.5378]
[1746577727022,3.2078,1837.3,1837.2,42.5378]
[1746577727324,3.2078,1837.3,1837.2,43.62646]
[1746577727917,3.2078,1837.3,1837.2,48.62646]
[1746577728127,4.29631,1837.5,1837.3,1.08859]
[1746577728324,3.2078,1838.3,1837.4,9.3598]
[1746577728525,1.08821,1838.0,1837.8,1.08829]
[1746577728828,5.92784,1838.3,1837.8,1.08825]
[1746577729021,1.0882,1838.0,1837.8,2.76385]
[1746577729424,3.2078,1838.1,1837.8,1.6756]
[1746577729634,1.08819,1838.0,1837.8,2.7639]
[1746577729929,3.2078,1838.1,1838.0,1.08819]
[1746577730118,1.08808,1838.2,1838.0,1.08815]
[1746577730933,4.29586,1838.3,1838.1,1.08809]
[1746577731125,6.141,1838.4,1838.2,1.08803]
[1746577731325,7.7149,1838.5,1837.9,7.54979]
[1746577731526,1.08801,1838.3,1838.1,1.08809]
[1746577731727,3.2078,1838.4,1838.0,1.08819]
[1746577731928,1.08808,1838.2,1838.0,1.08819]
[1746577732230,7.7149,1838.5,1837.9,1.6214]
[1746577732430,1.08798,1838.4,1838.2,1.08806]
[1746577732732,1.08798,1838.4,1838.1,1.08808]
[1746577732931,8.80284,1838.5,1837.9,4.34197]
[1746577733129,1.08795,1838.4,1838.2,1.08804]
[1746577733632,1.08794,1838.5,1838.3,1.08801]
[1746577733830,1.08786,1838.6,1838.4,1.08791]
[1746577734529,1.08786,1838.6,1838.3,1.08799]
[1746577734730,1.08786,1838.6,1838.4,40.8]
[1746577734929,1.08786,1838.6,1838.4,42.4432]
[1746577735432,2.76949,1838.5,1838.4,42.4432]
[1746577735625,2.76949,1838.5,1838.4,40.8]
[1746577736024,5.97729,1838.5,1838.4,40.8]
[1746577737531,1.08813,1838.1,1838.0,3.2078]
[1746577737831,1.08813,1838.1,1837.8,6.151]
[1746577737832,12.05887,1838.3,1837.8,7.8088]
[1746577738034,11.0204,1838.3,1837.9,40.8]
[1746577738229,1.0881,1838.2,1837.9,42.4578]
[1746577738429,1.08814,1838.1,1837.9,43.54599]
[1746577738635,1.08814,1838.1,1837.9,42.4578]
[1746577738828,2.76771,1838.2,1837.9,43.54603]
[1746577739029,1.6796,1838.2,1837.9,43.54603]
[1746577739222,1.08813,1838.1,1837.9,43.54603]
[1746577739427,1.08819,1838.0,1837.9,42.4578]
[1746577739632,2.76779,1838.0,1837.9,40.8]
[1746577740229,16.0154,1838.0,1837.0,3.2078]
[1746577740426,1.08872,1837.1,1837.0,1.6089]
[1746577740631,1.08872,1837.1,1837.0,42.4089]
[1746577741238,1.08872,1837.1,1837.0,40.8]
[1746577742241,1.08898,1836.7,1836.4,3.2825]
[1746577742543,3.2078,1837.1,1836.6,4.2968]
[1746577742732,3.2078,1837.1,1836.7,48.6985]
[1746577742733,1.08879,1837.0,1836.7,48.6985]
[1746577742936,6.00028,1837.1,1836.7,48.6985]
[1746577743136,1.08879,1837.0,1836.7,48.6985]
[1746577743336,4.9115,1837.1,1836.7,42.5495]
[1746577743540,8.8474,1837.4,1836.4,12.9965]
[1746577743541,7.63365,1836.9,1836.4,12.9965]
[1746577743842,1.08906,1836.6,1836.5,1.7495]
[1746577744036,1.08908,1836.5,1836.4,1.6277]
[1746577744339,1.08918,1836.4,1836.2,1.7495]
[1746577744644,1.08918,1836.4,1836.3,40.8]
[1746577744945,1.08931,1836.1,1836.0,1.5926]
[1746577745145,1.08931,1836.1,1836.0,3.2695]
[1746577745332,7.65012,1836.3,1835.9,3.2078]
[1746577745539,7.65012,1836.3,1835.3,71.377]
[1746577745540,1.08931,1836.1,1836.0,40.8]
[1746577746144,1.08949,1835.8,1835.7,1.6769]
[1746577746342,1.08955,1835.7,1835.6,3.2078]
[1746577746734,1.08961,1835.6,1835.5,1.6769]
[1746577746935,1.08973,1835.4,1835.2,3.2078]
[1746577747239,1.08979,1835.3,1835.2,1.6769]
[1746577747447,2.71519,1835.3,1835.2,1.6769]
[1746577747643,2.71519,1835.3,1835.1,1.5926]
[1746577747838,1.09003,1834.9,1834.8,1.6891]
[1746577748546,1.08993,1835.1,1834.8,10.98695]
[1746577748747,1.08991,1835.1,1835.0,3.2078]
[1746577748939,1.08989,1835.2,1835.0,3.2078]
[1746577749247,1.08989,1835.2,1835.1,1.6275]
[1746577749742,1.09001,1835.0,1834.8,3.2078]
[1746577749942,1.08997,1835.0,1834.9,1.6275]
[1746577750247,10.47279,1835.4,1834.9,1.6275]
[1746577750248,1.08994,1835.1,1834.9,1.6275]
[1746577750450,1.08997,1835.0,1834.9,1.6275]
[1746577750945,9.3308,1835.4,1834.9,7.71751]
[1746577751147,1.08988,1835.2,1834.9,1.6275]
[1746577751349,1.6545,1835.5,1835.0,3.2078]
[1746577751543,1.08976,1835.4,1835.1,1.6598]
[1746577751850,1.6545,1835.5,1835.1,2.74967]
[1746577752349,1.08981,1835.3,1835.2,1.6598]
[1746577752648,1.6545,1835.5,1835.2,2.74963]
[1746577752846,1.08978,1835.4,1835.2,2.74964]
[1746577753153,1.08978,1835.4,1835.3,40.8]
[1746577753652,3.2078,1836.1,1835.3,48.5244]
[1746577753847,1.08945,1835.9,1835.7,4.29731]
[1746577754042,1.08942,1836.0,1835.8,2.69059]
[1746577754347,2.81172,1836.0,1835.9,1.6011]
[1746577755549,1.08947,1835.9,1835.7,1.08951]
[1746577755746,1.7223,1835.9,1835.6,1.6011]